bitfinex/quotes_ETHUSD_20241003
["timestamp","ask_amount","ask_price","bid_price","bid_amount"]
[1727925308007,4.22517077,2392.4,2392.0,4.18057]
[1727925308320,4.22517077,2392.4,2392.1,0.40494858]
[1727925308497,4.22517077,2392.4,2391.9,8.36136]
[1727925308700,4.22517077,2392.4,2392.0,5.23345809]
[1727925308888,0.04526077,2392.4,2392.1,0.40495696]
[1727925309090,0.04526077,2392.4,2392.2,0.40495082]
[1727925309278,0.04526077,2392.4,2392.1,4.18042]
[1727925309474,0.04526077,2392.4,2392.2,0.40495245]
[1727925309678,0.04526077,2392.4,2392.0,4.18057]
[1727925309875,0.04526077,2392.4,2392.1,0.40494743]
[1727925310256,0.04526077,2392.4,2392.2,0.40494743]
[1727925310514,0.04526077,2392.4,2392.3,6.66913472]
[1727925310713,8.1918,2392.8,2392.6,4.17951]
[1727925310714,7.387,2392.8,2392.6,4.17951]
[1727925311023,8.21200782,2393.3,2392.9,4.17891]
[1727925311313,8.21200782,2393.3,2392.6,2.10244737]
[1727925311314,4.17853,2393.2,2393.0,0.835809]
[1727925311523,4.17886,2393.0,2392.6,3.8312]
[1727925311820,0.8169,2393.3,2392.4,1.31799263]
[1727925311821,4.99612,2392.8,2392.4,4.70986175]
[1727925311976,4.17938,2392.7,2392.3,7.41480059]
[1727925312181,4.17938,2392.7,2392.2,5.84559175]
[1727925312386,4.17974,2392.5,2392.2,0.87866175]
[1727925312715,4.9737,2392.4,2392.0,0.87866175]
[1727925313013,4.9737,2392.4,2392.0,2.32529156]
[1727925313173,4.18009,2392.3,2391.9,5.05932175]
[1727925314206,0.7938,2392.4,2391.9,9.24000175]
[1727925314207,4.97371,2392.4,2391.9,9.24000175]
[1727925314905,4.97371,2392.4,2392.0,0.87866175]
[1727925315105,4.97371,2392.4,2391.9,9.24000175]
[1727925315342,4.97371,2392.4,2392.0,5.05923175]
[1727925315631,0.7938,2392.4,2392.0,5.05923175]
[1727925320326,0.7938,2392.4,2392.1,4.18042]
[1727925321199,0.7938,2392.4,2392.1,5.05908175]
[1727925321398,0.7938,2392.4,2392.1,4.18042]
[1727925321643,0.03822636,2392.3,2392.1,4.18042]
[1727925321852,0.03822636,2392.3,2392.1,5.05908175]
[1727925324016,0.03822636,2392.3,2392.1,4.18042]
[1727925324762,0.03822636,2392.3,2392.1,5.05908175]
[1727925329338,0.03822636,2392.3,2392.1,0.87866175]
[1727925329660,0.03822636,2392.3,2392.0,5.05918175]
[1727925332666,0.8031,2392.2,2392.0,5.05918175]
[1727925332879,0.03822636,2392.3,2391.7,0.87866175]
[1727925332880,0.8031,2392.0,2391.7,0.87866175]
[1727925333106,0.8031,2392.0,2391.7,4.1811]
[1727925333258,0.03811525,2391.9,2391.7,4.1811]
[1727925333993,0.03811525,2391.9,2391.7,6.24277592]
[1727925334205,0.03811525,2391.9,2391.8,4.18095]
[1727925334363,0.00810782,2392.4,2392.1,4.18042]
[1727925334559,4.98904,2392.5,2392.0,5.45182737]
[1727925334899,4.98904,2392.5,2392.0,4.18058]
[1727925335274,4.98904,2392.5,2392.0,5.0589283]
[1727925335894,4.98904,2392.5,2392.0,9.2394383]
[1727925336103,0.8093,2392.5,2392.1,4.1804]
[1727925336284,4.98904,2392.5,2392.0,7.76887585]
[1727925336486,4.98904,2392.5,2392.1,4.1804]
[1727925336717,0.03795114,2392.4,2392.1,4.1804]
[1727925338358,0.03795114,2392.4,2392.2,4.18016]
[1727925338562,0.03795114,2392.4,2392.3,4.18007]
[1727925338759,5.00732,2392.7,2392.3,4.18007]
[1727925339004,0.03797205,2392.4,2392.3,4.18007]
[1727925339173,5.00732,2392.7,2392.3,4.18007]
[1727925339698,0.03799552,2392.6,2392.3,4.18007]
[1727925339903,0.03799552,2392.6,2392.3,5.44530425]
[1727925340262,0.03799552,2392.6,2392.3,1.26523425]
[1727925340504,4.21765552,2392.6,2392.2,2.08684737]
[1727925341072,4.21765552,2392.6,2392.2,0.8156]
[1727925342808,0.03799552,2392.6,2392.2,0.8156]
[1727925342980,0.03799552,2392.6,2392.2,5.84213383]
[1727925343299,0.03799552,2392.6,2392.2,7.9917295]
[1727925343664,4.21756552,2392.6,2392.2,7.9917295]
[1727925343865,4.21756552,2392.6,2392.2,3.8115495]
[1727925344082,0.03799552,2392.6,2392.2,3.8115495]
[1727925344394,0.03799552,2392.6,2392.3,0.51295421]
[1727925344574,0.03799552,2392.6,2392.2,11.32542567]
[1727925347002,0.03799552,2392.6,2392.3,4.18004]
[1727925347369,4.21755552,2392.6,2392.2,5.8740383]
[1727925347580,4.21755552,2392.6,2392.2,5.0584383]
[1727925349406,4.17974,2392.5,2392.2,0.8783483]
[1727925349609,0.79083163,2392.5,2392.1,5.0586883]
[1727925350386,0.79083163,2392.5,2392.2,4.18024]
[1727925350706,0.79083163,2392.5,2392.2,8.36048]
[1727925350908,0.79083163,2392.5,2392.2,5.0585883]
[1727925351223,4.97057163,2392.5,2392.1,5.0587183]
[1727925352096,0.79083163,2392.5,2392.1,5.0587183]
[1727925352941,4.97056163,2392.5,2392.1,5.0587183]
[1727925353119,4.97056163,2392.5,2392.1,4.18037]
[1727925353279,0.79083163,2392.5,2392.1,5.0587183]
[1727925353922,4.97056163,2392.5,2392.1,4.18037]
[1727925354226,0.79083163,2392.5,2392.1,4.18037]
[1727925354425,0.79083163,2392.5,2392.1,5.0587183]
[1727925356580,0.79083163,2392.5,2392.3,4.17995]
[1727925356793,0.03683163,2392.5,2392.3,4.17995]
[1727925356993,0.8189,2392.7,2392.3,4.17995]
[1727925357223,0.03691895,2392.4,2392.3,4.12995]
[1727925357427,0.8189,2392.7,2392.3,5.0082983]
[1727925357629,0.03691895,2392.4,2392.3,5.0082983]
[1727925357798,0.8189,2392.7,2392.3,5.0082983]
[1727925358003,0.03692176,2392.4,2392.3,5.0082983]
[1727925358321,0.8189,2392.7,2392.3,5.0082983]
[1727925358632,0.8189,2392.7,2392.2,9.2387183]
[1727925358633,0.8189,2392.4,2392.2,9.2387183]
[1727925359131,0.03698644,2392.3,2392.2,5.0584883]
[1727925359858,0.8189,2392.4,2392.3,4.18007]
[1727925362514,0.8065,2392.6,2392.3,4.18007]
[1727925362974,0.8065,2392.6,2392.3,5.0584183]
[1727925363354,0.8065,2392.6,2392.3,4.18007]
[1727925364259,4.17981,2392.5,2392.2,0.8783483]
[1727925364471,0.8187,2392.4,2392.1,0.8783483]
[1727925364752,7.17903,2392.9,2391.8,5.93814351]
[1727925364753,0.8187,2392.1,2391.9,0.8783483]
[1727925366323,4.18011,2392.3,2391.9,0.8783483]
[1727925366324,4.95931,2392.3,2391.9,0.8783483]
[1727925366857,0.03698151,2392.2,2392.1,5.01282]
[1727925367032,4.9586,2392.7,2392.2,4.18016]
[1727925367357,4.9586,2392.7,2392.2,5.0585083]
[1727925368212,4.17957,2392.6,2392.2,5.0585083]
[1727925372235,4.17957,2392.6,2392.2,0.8783483]
[1727925372947,4.17957,2392.6,2392.1,5.8911383]
[1727925373128,4.17957,2392.6,2392.2,5.0585583]
[1727925373777,4.17957,2392.6,2392.2,0.8783483]
[1727925375449,4.17957,2392.6,2392.1,5.8911383]
[1727925376976,4.17957,2392.6,2392.2,0.38888186]
[1727925377277,4.17957,2392.6,2392.2,0.8783483]
[1727925377570,4.17957,2392.6,2392.1,5.8911383]
[1727925377879,4.17992,2392.4,2392.1,1.7107483]
[1727925378687,4.17974,2392.5,2392.1,1.7107483]
[1727925380649,4.17974,2392.5,2392.2,0.8783483]
[1727925381474,0.03697352,2392.4,2392.2,0.8783483]
[1727925381689,0.03697352,2392.4,2392.3,8.28292509]
[1727925381979,4.17893,2393.0,2392.5,4.17957]
[1727925382134,4.17893,2393.0,2392.5,10.50927926]
[1727925382332,4.17893,2393.0,2392.6,0.87882189]
[1727925382537,4.17903,2392.9,2392.6,0.87882189]
[1727925382743,0.8221,2393.1,2392.5,0.87882189]
[1727925383088,0.83020782,2393.3,2392.9,5.45017737]
[1727925383232,11.56515,2393.4,2393.0,0.7927]
[1727925383589,8.35647,2393.4,2393.0,0.7927]
[1727925384459,8.35639,2393.4,2393.0,0.7927]
[1727925385069,4.17836,2393.3,2393.0,0.7927]
[1727925385382,4.17836,2393.3,2392.8,4.17919]
[1727925385564,4.17836,2393.3,2392.8,4.97189]
[1727925386448,4.17836,2393.3,2392.8,6.23383621]
[1727925388154,4.17836,2393.3,2392.9,4.179]
[1727925389184,4.17815,2393.4,2392.9,4.179]
[1727925389842,8.35646,2393.4,2392.9,4.179]
[1727925390280,4.17815,2393.4,2392.9,9.62919737]
[1727925390603,8.35646,2393.4,2393.0,1.16838436]
[1727925390775,4.17835,2393.3,2392.9,5.45019737]
[1727925398794,4.1786,2393.2,2392.8,0.7927]
[1727925399166,0.8172,2393.2,2392.8,0.7927]
[1727925399365,4.1788,2393.1,2392.5,0.7985]
[1727925399611,4.1788,2393.1,2392.7,0.7985]
[1727925400015,4.1788,2393.1,2392.7,4.97786]
[1727925400315,4.17885,2393.0,2392.7,0.7985]
[1727925401414,4.1788,2393.1,2392.7,0.7985]
[1727925401571,8.35757,2393.1,2392.7,0.7985]
[1727925401772,4.17877,2393.1,2392.7,0.7985]
[1727925402506,4.17892,2393.0,2392.7,0.7985]
[1727925407908,4.17877,2393.1,2392.7,0.7985]
[1727925408554,8.35755,2393.1,2392.7,0.7985]
[1727925409117,4.17893,2393.0,2392.7,0.7985]
[1727925410858,4.17911,2392.9,2392.7,0.7985]
[1727925411057,4.17893,2393.0,2392.7,0.7985]
[1727925411424,8.3579,2393.0,2392.7,0.7985]
[1727925411625,4.17893,2393.0,2392.7,0.7985]
[1727925415732,8.35787,2393.0,2392.7,0.7985]
[1727925415932,4.17893,2393.0,2392.7,0.7985]
[1727925416338,8.35789,2393.0,2392.7,0.7985]
[1727925418158,4.17893,2393.0,2392.7,0.7985]
[1727925418853,8.35788,2393.0,2392.7,0.7985]
[1727925419225,4.17893,2393.0,2392.7,0.7985]
[1727925419425,8.35789,2393.0,2392.7,0.7985]
[1727925420259,4.17893,2393.0,2392.7,0.7985]
[1727925420639,4.1792,2392.8,2392.7,0.7985]
[1727925420871,0.7778,2392.8,2392.5,0.8208]
[1727925421177,4.17924,2392.8,2392.5,0.8208]
[1727925422755,8.35856,2392.8,2392.5,0.8208]
[1727925422967,4.17982,2392.5,2392.2,0.7757]
[1727925423209,0.7997,2392.8,2391.9,1.65362189]
[1727925423210,4.18044,2392.1,2391.9,1.65362189]
[1727925423510,4.18095,2391.8,2391.6,0.87882189]
[1727925423818,4.18095,2391.8,2391.4,0.87882189]
[1727925423819,4.18924782,2391.7,2391.4,0.87882189]
[1727925423997,4.18132,2391.6,2391.4,0.87882189]
[1727925424173,4.18158,2391.5,2391.3,0.87882189]
[1727925424389,4.18158,2391.5,2391.2,0.0792403]
[1727925424798,4.18132,2391.6,2391.2,0.0792403]
[1727925425590,8.36277,2391.6,2391.2,0.0792403]
[1727925426116,4.1815,2391.5,2391.2,0.0792403]
[1727925426812,8.36272,2391.6,2391.2,0.0792403]
[1727925427404,4.18132,2391.6,2391.2,0.0792403]
[1727925428411,8.36277,2391.6,2391.2,0.0792403]
[1727925428797,0.00810782,2391.7,2391.4,1.27124737]
[1727925429002,4.18078,2391.9,2391.6,1.27124737]
[1727925429320,4.18078,2391.9,2391.5,0.8179]
[1727925432525,4.18098,2391.8,2391.5,0.8179]
[1727925434703,8.36172,2391.9,2391.5,0.8179]
[1727925435115,4.18078,2391.9,2391.5,0.8179]
[1727925435748,4.18078,2391.9,2391.6,1.27124737]
[1727925436248,8.36168,2391.9,2391.6,1.27124737]
[1727925436449,4.18078,2391.9,2391.6,1.27124737]
[1727925436656,8.36164,2391.9,2391.6,1.27124737]
[1727925436818,4.18097,2391.8,2391.6,1.27124737]
[1727925437621,4.18078,2391.9,2391.6,1.27124737]
[1727925437845,4.18853782,2392.1,2391.6,5.45251737]
[1727925438360,8.36909782,2392.1,2391.6,5.45251737]
[1727925439028,4.18066,2392.0,2391.5,4.99932]
[1727925439226,4.18066,2392.0,2391.5,9.18074]
[1727925439753,4.18066,2392.0,2391.5,9.18067]
[1727925440117,4.18066,2392.0,2391.5,4.99928]
[1727925440815,4.18066,2392.0,2391.5,9.18067]
[1727925441012,4.18853782,2392.1,2391.6,4.1812]
[1727925441550,4.18853782,2392.1,2391.5,4.99928]
[1727925441551,4.18071,2392.0,2391.5,4.99928]
[1727925442937,4.18853782,2392.1,2391.5,4.99927]
[1727925443139,4.18853782,2392.1,2391.6,4.18122]
[1727925443333,8.36908782,2392.1,2391.6,4.18122]
[1727925445229,4.18061,2392.0,2391.6,4.18122]
[1727925445457,4.18061,2392.0,2391.5,4.99927]
[1727925445684,4.18061,2392.0,2391.5,4.99926]
[1727925445853,4.18853782,2392.1,2391.5,0.8179]
[1727925446053,4.18853782,2392.1,2391.7,4.1811]
[1727925446465,4.1806,2392.0,2391.5,4.99934]
[1727925446931,4.1806,2392.0,2391.5,9.18073]
[1727925447133,4.18853782,2392.1,2391.6,4.18119]
[1727925447563,4.18062,2392.0,2391.6,4.18119]
[1727925448627,7.18853782,2392.1,2391.6,4.18119]
[1727925449743,7.18853782,2392.1,2391.7,4.18112]
[1727925450329,7.18853782,2392.1,2391.5,4.99929]
[1727925450529,7.18853782,2392.1,2391.6,4.18127]
[1727925450728,3.00810782,2392.1,2391.6,4.18127]
[1727925450974,4.1806,2392.0,2391.6,4.18127]
[1727925453293,0.7649,2391.8,2391.5,0.8179]
[1727925453491,0.7649,2391.8,2391.2,4.2612103]
[1727925453492,4.18122,2391.7,2391.2,4.2612103]
[1727925453801,4.18932782,2391.7,2391.2,4.2612103]
[1727925453949,4.18932782,2391.7,2391.2,5.53245767]
[1727925454557,0.00810782,2391.7,2391.3,4.18172]
[1727925455093,4.18924782,2391.7,2391.2,4.2612303]
[1727925456176,0.00810782,2391.7,2391.6,4.1813]
[1727925456351,3.7503,2392.0,2391.7,4.18111]
[1727925456551,4.18853782,2392.1,2391.7,4.18111]
[1727925457378,4.18853782,2392.1,2391.6,4.1813]
[1727925457702,4.18061,2392.0,2391.6,4.1813]
[1727925457907,4.18853782,2392.1,2391.6,4.18118]
[1727925458200,4.18853782,2392.1,2391.7,4.18112]
[1727925458393,4.18853782,2392.1,2391.6,4.18118]
[1727925458699,8.36906782,2392.1,2391.6,4.18118]
[1727925459463,4.18853782,2392.1,2391.6,4.18118]
[1727925459666,4.1806,2392.0,2391.6,4.18118]
[1727925460562,4.1806,2392.0,2391.5,6.28440737]
[1727925461272,4.1806,2392.0,2391.6,4.18122]
[1727925461495,4.1806,2392.0,2391.5,10.46578737]
[1727925461803,4.1806,2392.0,2391.5,6.28432737]
[1727925461969,4.1806,2392.0,2391.5,5.01308]
[1727925462169,4.99668,2391.9,2391.3,4.9553]
[1727925462409,4.18112,2391.7,2391.4,0.38382283]
[1727925462609,4.18112,2391.7,2391.3,4.9553]
[1727925463167,4.18112,2391.7,2391.4,0.3838378]
[1727925463363,4.18112,2391.7,2391.3,4.9553]
[1727925464000,4.18112,2391.7,2391.3,9.13702]
[1727925464189,4.18112,2391.7,2391.3,4.9553]
[1727925464924,4.18921782,2391.8,2391.4,0.38381571]
[1727925465068,4.18921782,2391.8,2391.3,4.9553]
[1727925466218,4.18921782,2391.8,2391.4,0.37917016]
[1727925466525,4.18921782,2391.8,2391.3,4.9553]
[1727925466686,4.18921782,2391.8,2391.4,0.37916549]
[1727925467022,4.18921782,2391.8,2391.3,9.13704]
[1727925467222,4.18921782,2391.8,2391.4,0.37916561]
[1727925467522,0.7712,2391.6,2391.2,5.14005219]
[1727925467722,0.7712,2391.6,2391.2,4.2612303]
[1727925467723,0.00810782,2391.5,2391.2,4.2612303]
[1727925467886,4.95258,2391.6,2391.2,4.2612303]
[1727925469562,4.95258,2391.6,2391.2,5.14005219]
[1727925469766,4.95258,2391.6,2391.2,4.2612303]
[1727925470824,4.18163,2391.5,2391.2,0.0792403]
[1727925471056,4.18973782,2391.5,2391.2,0.0792403]
[1727925473251,0.00810782,2391.5,2391.2,0.0792403]
[1727925473455,0.00810782,2391.5,2391.3,4.18181]
[1727925473758,0.00810782,2391.5,2391.3,1.27124737]
[1727925474064,0.00810782,2391.5,2391.2,0.8804403]
[1727925474472,0.00810782,2391.5,2391.2,5.0623603]
[1727925474828,0.00810782,2391.5,2391.2,0.8804403]
[1727925475753,4.18969782,2391.5,2391.2,0.0792403]
[1727925475970,0.00810782,2391.5,2391.2,0.0792403]
[1727925476184,4.18165,2391.4,2391.2,0.0792403]
[1727925476689,4.18960782,2391.5,2391.2,0.0792403]
[1727925478264,0.00810782,2391.5,2391.2,0.0792403]
[1727925478947,7.18924782,2391.7,2391.3,4.18181]
[1727925479189,0.00810782,2391.5,2391.3,4.93191]
[1727925479357,4.18133,2391.6,2391.3,0.7501]
[1727925480056,7.18114,2391.7,2391.3,0.7501]
[1727925480269,11.36238,2391.7,2391.3,0.7501]
[1727925480580,4.18134,2391.6,2391.3,0.7501]
[1727925480778,7.18114,2391.7,2391.3,0.7501]
[1727925480980,0.83870782,2391.8,2391.3,2.73747533]
[1727925480981,0.00810782,2391.8,2391.3,2.73747533]
[1727925481150,11.2083,2392.0,2391.7,1.27124737]
[1727925481151,8.2083,2392.0,2391.7,1.27124737]
[1727925481352,7.387,2392.0,2391.7,5.45234737]
[1727925481588,7.387,2392.0,2391.7,1.27124737]
[1727925481905,4.18071,2392.0,2391.6,0.7963]
[1727925483967,4.18078,2391.9,2391.6,0.7963]
[1727925484311,4.18078,2391.9,2391.5,4.1813]
[1727925484662,4.18062,2392.0,2391.5,5.45254737]
[1727925485776,4.18096,2391.8,2391.4,1.68212189]
[1727925485959,4.18096,2391.8,2391.4,2.95336926]
[1727925486168,5.00233,2391.9,2391.4,7.13488926]
[1727925486369,5.00233,2391.9,2391.5,4.18146]
[1727925487096,9.18319,2391.9,2391.5,4.18146]
[1727925487303,5.00226,2391.9,2391.5,4.18146]
[1727925487677,9.18313,2391.9,2391.4,7.13500926]
[1727925487872,5.00226,2391.9,2391.4,7.13500926]
[1727925488586,5.00226,2391.9,2391.5,4.18143]
[1727925489513,3.00810782,2392.1,2391.8,2.06304737]
[1727925489696,4.18027,2392.2,2391.9,4.1807]
[1727925489697,3.0,2392.2,2391.9,4.1807]
[1727925490091,4.95038,2392.3,2391.9,4.1807]
[1727925490092,0.7702,2392.3,2391.9,4.1807]
[1727925490934,0.00810782,2392.4,2392.3,4.94787]
[1727925491139,7.387,2392.7,2392.5,4.17959]
[1727925491360,4.61616827,2393.0,2392.6,1.27124737]
[1727925491361,4.17889,2393.0,2392.6,1.27124737]
[1727925491676,4.17908,2392.9,2392.6,1.27124737]
[1727925493687,8.35865,2392.8,2392.3,4.94787]
[1727925494171,4.17931,2392.8,2392.4,4.17987]
[1727925495457,4.17905,2392.9,2392.4,4.17987]
[1727925499093,4.17905,2392.9,2392.4,4.17830853]
[1727925499480,4.17929,2392.8,2392.3,4.94787]
[1727925499797,0.7806,2392.7,2392.3,4.94787]
[1727925500152,0.7806,2392.7,2392.3,4.94778]
[1727925500899,0.7806,2392.7,2392.4,4.17989]
[1727925501054,4.95965,2392.9,2392.4,4.17989]
[1727925501487,9.13884,2392.9,2392.4,4.17989]
[1727925501991,4.95965,2392.9,2392.4,4.17989]
[1727925502194,9.13879,2392.9,2392.4,4.17989]
[1727925505171,4.17922,2392.8,2392.4,4.17989]
[1727925505570,4.95965,2392.9,2392.4,4.17989]
[1727925506094,4.95965,2392.9,2392.5,4.17972]
[1727925506296,0.00810782,2393.0,2392.5,4.17972]
[1727925506297,7.18697782,2393.0,2392.5,4.17972]
[1727925506688,0.00810782,2393.0,2392.7,4.17921]
[1727925506895,0.00810782,2393.0,2392.8,4.17911]
[1727925507711,0.00810782,2393.0,2392.7,4.17936]
[1727925508419,0.00810782,2393.0,2392.7,4.17937]
[1727925511395,0.00810782,2393.0,2392.9,0.8194]
[1727925511600,0.00810782,2393.6,2393.3,4.17817]
[1727925511917,0.81200782,2393.8,2393.3,6.93109836]
[1727925512216,0.81200782,2393.8,2393.3,7.75049836]
[1727925512534,0.00810782,2393.8,2393.4,4.17805]
[1727925512828,7.387,2393.9,2393.5,6.93084836]
[1727925512971,7.387,2393.9,2393.6,0.7764]
[1727925513621,7.387,2393.9,2393.7,6.93044836]
[1727925514022,7.387,2393.9,2393.7,2.75292836]
[1727925514422,4.17672,2394.3,2393.7,2.75292836]
[1727925515365,0.79110782,2394.4,2394.0,4.17699]
[1727925515531,0.783,2394.4,2394.0,4.17699]
[1727925515929,0.783,2394.4,2393.9,11.10724836]
[1727925516148,0.783,2394.4,2393.9,4.17714]
[1727925517487,3.0,2394.5,2394.1,4.17691]
[1727925517689,3.0,2394.5,2394.1,4.17682]
[1727925518345,8.1405,2394.6,2394.1,4.17682]
[1727925518346,0.7535,2394.6,2394.2,0.7946]
[1727925518588,0.00810782,2394.7,2394.3,4.17647]
[1727925518799,0.00810782,2394.7,2394.3,8.35295]
[1727925518951,0.00810782,2394.7,2394.4,4.17639]
[1727925519149,4.17549,2395.0,2394.7,4.17585]
[1727925519150,0.00810782,2395.0,2394.7,4.17585]
[1727925519347,0.76590782,2395.3,2394.8,4.1757]
[1727925519571,0.00810782,2395.3,2395.0,4.17534]
[1727925519776,11.56151,2395.5,2395.0,4.17534]
[1727925519956,11.56151,2395.5,2394.9,2.75292836]
[1727925519957,0.77730782,2395.6,2395.2,4.17499]
[1727925520161,4.95136782,2395.8,2395.3,4.17483]
[1727925520356,4.95136782,2395.8,2395.2,8.34988]
[1727925520556,4.95136782,2395.8,2395.2,4.17489]
[1727925520757,4.17424,2395.7,2395.2,4.17489]
[1727925521358,4.68968626,2395.8,2395.2,4.17489]
[1727925521657,7.17429,2395.7,2395.2,4.17489]
[1727925523057,7.17429,2395.7,2395.1,0.7726]
[1727925523253,3.0,2395.7,2395.1,0.7726]
[1727925523460,4.17434,2395.6,2395.1,0.7726]
[1727925524996,0.758,2395.5,2395.0,4.17524]
[1727925525199,0.758,2395.5,2395.1,4.17517]
[1727925525515,3.0,2395.7,2395.2,4.17491]
[1727925525668,3.0,2395.7,2395.3,0.8057]
[1727925526015,3.0,2395.7,2395.3,4.98051]
[1727925528692,5.00092782,2395.8,2395.3,4.98051]
[1727925528693,4.18212782,2395.8,2395.3,4.98051]
[1727925529828,8.35618782,2395.8,2395.3,4.98051]
[1727925530385,4.18212782,2395.8,2395.3,4.98051]
[1727925530833,8.35620782,2395.8,2395.3,4.98051]
[1727925531700,4.18212782,2395.8,2395.3,4.98051]
[1727925531899,4.17417,2395.7,2395.3,4.98051]
[1727925532099,4.18212782,2395.8,2395.3,4.98051]
[1727925532322,4.18212782,2395.8,2395.3,9.15532]
[1727925532526,4.18212782,2395.8,2395.3,4.98051]
[1727925534127,8.35624782,2395.8,2395.3,4.98051]
[1727925534333,4.18212782,2395.8,2395.3,4.98051]
[1727925535150,8.35617782,2395.8,2395.3,4.98051]
[1727925535448,4.18212782,2395.8,2395.4,4.17466]
[1727925535653,4.18212782,2395.8,2395.3,9.15524]
[1727925536023,4.18212782,2395.8,2395.3,9.15517]
[1727925536623,4.18212782,2395.8,2395.3,9.15519]
[1727925536957,4.18212782,2395.8,2395.3,4.98043]
[1727925537152,4.18212782,2395.8,2395.4,4.17466]
[1727925537744,0.00810782,2395.8,2395.4,4.17466]
[1727925537923,0.00810782,2395.8,2395.7,4.93374]
[1727925538120,0.00810782,2396.4,2395.9,4.17377]
[1727925538360,12.78420539,2396.6,2396.1,4.93296]
[1727925538656,7.39510782,2396.6,2396.2,4.17317]
[1727925538824,7.387,2396.6,2396.2,4.17317]
[1727925539012,4.17242,2396.7,2396.2,4.17317]
[1727925539213,7.387,2397.0,2396.6,4.93207]
[1727925539423,4.17977782,2397.2,2396.7,4.17239]
[1727925539917,4.17977782,2397.2,2396.6,4.93207]
[1727925540116,4.17977782,2397.2,2396.7,4.17227]
[1727925540318,0.82930782,2397.6,2396.9,4.17201]
[1727925540611,4.17133,2397.4,2396.7,4.17223]
[1727925540850,4.17133,2397.4,2396.9,4.17204]
[1727925541622,3.0,2397.3,2396.9,4.17204]
[1727925542023,3.0,2397.3,2396.7,4.17223]
[1727925542024,7.17138,2397.3,2396.8,4.17219]
[1727925542229,3.0,2397.3,2396.8,4.17219]
[1727925542620,7.17136,2397.3,2396.7,8.34454]
[1727925542957,7.17136,2397.3,2396.6,0.7596]
[1727925542958,4.1719,2397.0,2396.6,0.7596]
[1727925543163,4.1717,2397.1,2396.6,0.7596]
[1727925543462,4.17188,2397.0,2396.6,0.7596]
[1727925543610,4.1724,2396.8,2396.4,0.7509]
[1727925543814,4.17207,2396.9,2396.2,4.17319]
[1727925544058,3.0,2396.8,2396.1,4.92421]
[1727925544267,4.1724,2396.7,2396.2,4.17327]
[1727925544563,4.1724,2396.7,2396.1,0.7509]
[1727925544564,4.17263,2396.6,2396.1,0.7509]
[1727925544758,4.17263,2396.6,2395.9,4.17371]
[1727925544759,4.17284,2396.5,2395.9,4.17371]
[1727925545057,4.17284,2396.5,2395.8,4.92473]
[1727925545362,4.17284,2396.5,2395.8,4.92472]
[1727925545567,4.17295,2396.4,2395.8,4.92472]
[1727925545760,4.17337,2396.2,2395.6,4.995]
[1727925545913,4.17315,2396.3,2395.6,4.995]
[1727925546112,4.17348,2396.1,2395.6,4.995]
[1727925546868,4.17348,2396.1,2395.6,9.16921]
[1727925547154,4.17341,2396.2,2395.6,9.16921]
[1727925547398,8.34682,2396.2,2395.6,4.995]
[1727925547532,4.17365,2396.0,2395.4,4.94475]
[1727925548060,4.17398,2395.8,2395.4,4.17455]
[1727925548417,4.17417,2395.7,2395.2,4.17494]
[1727925549221,4.17417,2395.7,2395.2,8.34986]
[1727925550638,4.17417,2395.7,2395.2,4.17492]
[1727925552219,4.17417,2395.7,2394.8,4.17561]
[1727925552220,4.17529,2395.1,2394.7,0.7665]
[1727925552453,3.0,2395.0,2394.6,4.17593]
[1727925552665,4.97319,2395.1,2394.7,4.17586]
[1727925552666,0.7979,2395.1,2394.7,4.17586]
[1727925553223,0.7979,2395.1,2394.8,4.1757]
[1727925553425,0.7979,2395.1,2394.6,4.17593]
[1727925556378,0.7979,2395.1,2394.4,5.49223528]
[1727925556379,0.7979,2395.1,2394.4,9.11909]
[1727925556584,0.7979,2395.1,2394.4,4.94278]
[1727925556754,0.7979,2395.1,2394.5,4.17619]
[1727925556951,0.7979,2395.1,2394.6,4.17595]
[1727925557158,0.7979,2395.1,2394.7,4.17579]
[1727925557344,0.7979,2395.1,2394.7,8.35158]
[1727925557544,0.7979,2395.1,2394.7,4.17579]
[1727925558890,0.7979,2395.1,2394.5,4.62872846]
[1727925559183,0.7979,2395.1,2394.6,4.17603]
[1727925560017,0.00810782,2395.2,2394.9,0.7687]
[1727925560153,0.8327,2395.7,2395.4,4.17457]
[1727925560503,8.65687741,2396.0,2395.6,4.17431]
[1727925560656,8.2197,2396.0,2395.5,4.17447]
[1727925561183,8.2197,2396.0,2395.4,4.17457]
[1727925561384,2.75292836,2395.9,2395.1,4.94388]
[1727925561609,3.0,2395.8,2395.1,0.7687]
[1727925561756,3.0,2395.8,2395.2,4.1749]
[1727925561757,3.00810782,2395.8,2395.2,4.1749]
[1727925562799,4.17418,2395.7,2395.0,4.17524]
[1727925562967,2.75292836,2395.5,2394.8,5.05442189]
[1727925563171,7.75391836,2395.5,2394.8,4.1756]
[1727925563392,0.55,2395.4,2394.9,4.17551]
[1727925564408,0.00810782,2395.3,2395.2,4.17501]
[1727925564903,3.0,2395.8,2395.7,4.17414]
[1727925564904,0.77430782,2395.8,2395.7,4.17414]
[1727925565113,0.00810782,2395.8,2395.7,4.17414]
[1727925565258,0.00810782,2396.1,2395.9,4.17374]
[1727925565458,0.7662,2396.3,2395.9,4.17374]
[1727925565691,0.7662,2396.3,2395.9,4.17369]
[1727925565901,0.7662,2396.3,2395.9,8.3474]
[1727925566094,0.7662,2396.3,2395.9,4.17369]
[1727925566311,0.7662,2396.3,2395.9,8.34739]
[1727925566477,0.7662,2396.3,2395.9,4.17369]
[1727925567083,0.7662,2396.3,2395.9,8.34739]
[1727925567287,0.7662,2396.3,2395.9,4.17369]
[1727925568193,0.7662,2396.3,2395.9,8.34738]
[1727925568572,0.7662,2396.3,2395.9,4.17369]
[1727925570775,0.7662,2396.3,2395.5,0.7778]
[1727925570975,0.7662,2396.3,2395.9,4.1737]
[1727925572784,0.75488819,2396.3,2395.9,4.1737]